bitfinex/quotes_ETHUSD_20251206
["timestamp","ask_amount","ask_price","bid_price","bid_amount"]
[1764984638354,3.15533837,3026.6,3026.5,0.001]
[1764984638638,4.86855234,3026.6,3026.5,0.001]
[1764984638989,0.0105,3026.5,3025.5,0.00221932]
[1764984639191,0.202,3025.6,3025.5,0.00221932]
[1764984639641,0.666,3025.6,3025.5,0.00221932]
[1764984641586,1.12917571,3025.6,3025.5,0.00221932]
[1764984641794,1.79001597,3025.6,3025.5,0.00221932]
[1764984642610,0.86284026,3025.6,3025.5,0.00221932]
[1764984643118,1.32684026,3025.6,3025.5,0.00221932]
[1764984643324,4.63196982,3025.6,3025.5,0.00221932]
[1764984646991,5.13747382,3025.6,3025.5,0.00221932]
[1764984649292,5.13747382,3025.6,3025.5,0.00321932]
[1764984649494,6.09999707,3025.6,3025.5,0.00321932]
[1764984657520,0.66084026,3025.8,3025.5,0.91871932]
[1764984657717,0.66084026,3026.0,3025.7,0.4541]
[1764984657920,0.66084026,3026.0,3025.9,0.4541]
[1764984658322,0.66084026,3026.0,3025.9,0.9155]
[1764984659317,0.66084026,3026.2,3025.9,0.9155]
[1764984659633,0.66084026,3026.0,3025.9,0.9155]
[1764984660741,0.66084026,3026.0,3025.9,4.22030187]
[1764984660932,0.66084026,3026.0,3025.9,4.64233206]
[1764984662530,0.66284026,3026.6,3025.9,4.64233206]
[1764984662531,0.66084026,3026.5,3025.9,4.64233206]
[1764984662736,0.66084026,3026.5,3026.1,0.4541]
[1764984662737,0.66084026,3026.2,3026.1,0.4541]
[1764984663221,0.66084026,3026.2,3026.1,1.1109]
[1764984664227,0.66084026,3026.2,3026.1,5.22973684]
[1764984664944,0.002,3026.6,3026.1,8.53432029]
[1764984665125,0.66084026,3026.5,3026.2,0.4614]
[1764984665641,0.002,3026.6,3026.4,0.4541]
[1764984665847,0.002,3026.6,3026.5,0.4541]
[1764984666011,0.002,3026.6,3026.5,0.9155]
[1764984666829,0.002,3026.6,3026.5,3.7582467]
[1764984667147,0.002,3026.6,3026.5,4.2196467]
[1764984667724,0.002,3026.6,3026.5,0.4541]
[1764984668334,0.002,3026.6,3026.5,4.2196467]
[1764984669844,0.002,3026.6,3026.5,4.94524081]
[1764984672667,0.002,3026.6,3026.5,3.7730467]
[1764984672946,0.002,3026.6,3026.5,4.2311467]
[1764984673649,0.3801,3026.6,3026.2,0.522]
[1764984673957,0.66084026,3026.3,3025.9,0.66284026]
[1764984674322,0.66084026,3026.3,3026.2,0.4689]
[1764984674818,1.03894026,3026.3,3025.8,1.90843437]
[1764984675146,0.66084026,3026.1,3025.9,3.30480187]
[1764984675325,0.66084026,3026.1,3026.0,0.4689]
[1764984676353,0.66084026,3026.1,3026.0,0.927]
[1764984676529,0.66084026,3026.1,3026.0,1.79894536]
[1764984677451,0.66084026,3026.1,3026.0,4.23169266]
[1764984677653,0.66084026,3026.1,3026.0,3.77359266]
[1764984677959,0.66084026,3026.1,3026.0,4.23169266]
[1764984678859,0.66084026,3026.3,3026.0,7.53638532]
[1764984679156,0.66084026,3026.3,3026.2,0.4689]
[1764984679547,0.66084026,3026.3,3026.2,4.23147425]
[1764984680348,0.66084026,3026.5,3026.2,7.5359485]
[1764984681256,0.66084026,3026.3,3026.2,4.23147425]
[1764984682859,0.66084026,3026.3,3026.2,3.77337425]
[1764984684251,0.66084026,3026.3,3025.8,3.30482287]
[1764984684252,0.1,3026.1,3025.8,3.30482287]
[1764984684556,0.66084026,3026.3,3026.0,6.60938532]
[1764984684753,0.66084026,3026.1,3026.0,3.30469266]
[1764984684955,1.15884026,3026.1,3026.0,3.30469266]
[1764984685558,0.66084026,3026.1,3026.0,3.77359266]
[1764984686161,0.66084026,3026.1,3026.0,3.77459266]
[1764984687647,1.41134026,3026.1,3026.0,3.30569266]
[1764984688156,1.15884026,3026.1,3026.0,3.30569266]
[1764984688364,0.66084026,3026.1,3026.0,3.77459266]
[1764984691869,0.66284026,3026.3,3026.0,5.03864306]
[1764984692039,0.66084026,3026.1,3026.0,4.11164306]
[1764984692439,0.66084026,3026.1,3026.0,5.03864306]
[1764984692653,0.002,3026.3,3026.0,8.34333572]
[1764984692965,0.002,3026.3,3026.2,9.8648944]
[1764984693159,0.002,3026.3,3026.2,10.3868944]
[1764984693463,0.002,3026.3,3026.2,10.8449944]
[1764984694860,0.8505,3026.3,3026.2,3.30447425]
[1764984695259,0.1,3026.2,3026.0,0.001]
[1764984695462,0.95394026,3026.1,3026.0,0.001]
[1764984698674,0.95394026,3026.1,3026.0,4.03128677]
[1764984698874,0.95394026,3026.1,3026.0,4.83746597]
[1764984700377,0.66084026,3026.1,3026.0,5.31586597]
[1764984700586,0.66084026,3026.1,3026.0,5.78406597]
[1764984700750,0.66284026,3026.3,3026.0,5.78406597]
[1764984700751,0.002,3026.3,3026.1,0.72559411]
[1764984701079,0.002,3026.3,3026.2,17.97622227]
[1764984701279,0.002,3026.3,3026.2,18.17620353]
[1764984701483,0.002,3026.3,3026.2,18.58170753]
[1764984702179,0.002,3026.9,3026.3,0.72559411]
[1764984702377,0.002,3026.9,3026.5,9.21749752]
[1764984702675,0.002,3026.9,3026.5,10.18937153]
[1764984702885,0.002,3026.9,3026.5,13.96171823]
[1764984703961,0.002,3026.9,3026.5,18.23374423]
[1764984704275,0.002,3026.9,3026.5,17.91674423]
[1764984705252,0.002,3026.9,3026.5,16.87445523]
[1764984705453,0.002,3026.7,3026.5,16.87445523]
[1764984708391,0.002,3026.7,3026.5,16.52115981]
[1764984709758,0.002,3026.7,3026.5,15.81835681]
[1764984713697,0.002,3026.7,3026.5,13.60842281]
[1764984714101,0.002,3026.7,3026.5,13.14022281]
[1764984714274,0.002,3026.7,3026.5,13.61382281]
[1764984714962,0.002,3026.7,3026.5,5.48001482]
[1764984715275,0.1,3026.5,3026.0,0.001]
[1764984715494,0.76084026,3026.5,3026.4,3.30425588]
[1764984715981,1.24234026,3026.5,3026.4,3.30425588]
[1764984716182,1.40554026,3026.5,3026.4,3.30425588]
[1764984717198,1.40554026,3026.5,3026.0,9.91502758]
[1764984717360,0.66084026,3026.2,3026.0,7.08393492]
[1764984717559,0.66084026,3026.2,3026.0,8.61054921]
[1764984717781,0.66084026,3026.2,3026.1,0.4922]
[1764984717974,0.66084026,3026.2,3026.0,8.13694921]
[1764984723484,0.66084026,3026.2,3026.1,0.4922]
[1764984724363,0.66084026,3026.2,3026.1,9.69285462]
[1764984727994,0.66084026,3026.2,3026.1,10.16645462]
[1764984729403,0.66084026,3026.2,3026.1,9.69285462]
[1764984730807,0.66084026,3026.2,3026.1,11.58269431]
[1764984730975,0.66084026,3026.2,3026.1,11.76499431]
[1764984731691,0.66084026,3026.2,3026.1,11.58269431]
[1764984732017,0.66084026,3026.2,3026.1,11.09379431]
[1764984732176,0.66084026,3026.2,3026.1,9.69285462]
[1764984732603,1.40354026,3026.2,3026.1,3.30458345]
[1764984732995,1.40354026,3026.2,3026.0,0.001]
[1764984733307,0.4662,3026.1,3026.0,0.001]
[1764984734071,0.5662,3026.1,3026.0,0.001]
[1764984735008,0.74110403,3026.1,3026.0,0.001]
[1764984736290,0.66084026,3026.2,3026.0,0.001]
[1764984736512,0.4726,3026.1,3026.0,0.001]
[1764984736886,0.7445,3026.1,3026.0,0.001]
[1764984742688,0.8445,3026.1,3026.0,0.001]
[1764984745017,4.14908345,3026.1,3026.0,0.001]
[1764984745189,5.55032968,3026.1,3026.0,0.001]
[1764984745610,2.24574623,3026.1,3026.0,0.001]
[1764984745795,0.8445,3026.1,3026.0,0.001]
[1764984746314,0.66084026,3026.2,3026.0,0.001]
[1764984746611,0.66084026,3026.2,3026.0,3.30569266]
[1764984747416,0.4726,3026.1,3026.0,3.30569266]
[1764984748324,0.7445,3026.1,3026.0,0.001]
[1764984749600,0.4726,3026.1,3026.0,0.001]
[1764984751421,0.66084026,3026.2,3026.0,3.79309266]
[1764984752396,0.2829,3026.1,3026.0,3.79309266]
[1764984753425,0.2829,3026.1,3026.0,3.30569266]
[1764984754499,0.2829,3026.1,3026.0,0.001]
[1764984754694,0.7427,3026.1,3026.0,0.001]
[1764984754897,0.2829,3026.1,3026.0,0.001]
[1764984755113,0.8427,3026.1,3026.0,0.001]
[1764984757702,4.14728345,3026.1,3026.0,0.001]
[1764984757909,4.95873462,3026.1,3026.0,0.001]
[1764984759635,1.65415117,3026.1,3026.0,0.001]
[1764984759822,0.8427,3026.1,3026.0,0.001]
[1764984760539,0.2829,3026.1,3026.0,0.001]
[1764984760752,0.66084026,3026.2,3026.0,0.9173]
[1764984760951,0.66084026,3026.2,3026.1,0.4567]
[1764984761157,0.66084026,3026.2,3026.1,3.76128345]
[1764984761613,0.66084026,3026.2,3026.1,10.31455462]
[1764984762348,0.66084026,3026.2,3026.1,11.67658425]
[1764984766122,0.2896,3025.6,3024.0,0.1953]
[1764984766358,0.1,3024.9,3024.0,3.5021511]
[1764984766541,0.1,3024.5,3024.0,3.3068511]
[1764984766741,0.1,3024.4,3024.0,3.3068511]
[1764984766920,0.302,3024.1,3023.7,0.523]
[1764984767120,0.003,3023.9,3023.5,0.4596]
[1764984767322,0.003,3023.9,3023.5,3.30742516]
[1764984767832,0.003,3023.9,3023.5,3.76702516]
[1764984768045,0.003,3023.9,3023.5,7.07445032]
[1764984768247,0.003,3023.9,3023.5,3.76702516]
[1764984768553,0.003,3023.9,3023.5,7.07445032]
[1764984769230,0.003,3023.9,3023.5,0.4596]
[1764984769436,0.003,3023.9,3023.4,4.02813067]
[1764984769623,0.003,3023.9,3023.5,3.30740366]
[1764984770734,0.76854026,3023.6,3023.0,3.50555765]
[1764984770929,0.1705,3023.5,3023.2,3.30771856]
[1764984771530,0.1705,3023.5,3023.1,3.30786278]
[1764984771737,0.1,3023.4,3023.1,3.30786278]
[1764984772056,0.1712,3023.5,3023.1,3.30786278]
[1764984772057,0.1,3023.5,3023.1,3.30786278]
[1764984772220,0.1,3023.5,3023.1,3.78016278]
[1764984772625,0.1,3023.5,3023.1,3.30786278]
[1764984773552,0.66084026,3023.2,3023.0,3.3079577]
[1764984773959,0.66084026,3023.2,3023.1,0.9675]
[1764984775633,0.66084026,3023.2,3023.1,4.27536278]
[1764984776057,0.66084026,3023.2,3023.1,5.08609483]
[1764984777340,0.66084026,3023.2,3023.1,3.80306278]
[1764984777567,0.93804026,3023.2,3023.1,3.30786278]
[1764984777752,0.93804026,3023.2,3023.0,3.3089577]
[1764984777958,0.5884,3023.1,3023.0,0.001]
[1764984778156,1.1114,3023.1,3023.0,0.001]
[1764984778372,1.28862403,3023.1,3023.0,0.001]
[1764984780270,0.76562403,3023.1,3023.0,0.001]
[1764984780473,1.28962403,3023.1,3023.0,0.001]
[1764984780680,0.28002403,3023.1,3023.0,0.001]
[1764984780840,0.66084026,3023.2,3023.0,0.9685]
[1764984781041,0.66084026,3023.4,3023.1,1.1524]
[1764984781255,0.66084026,3023.4,3023.0,0.001]
[1764984781581,0.5843,3023.1,3023.0,0.001]
[1764984782338,0.1,3023.2,3023.0,0.001]
[1764984782844,1.14304026,3023.1,3023.0,0.001]
[1764984784964,0.66084026,3023.2,3023.0,0.9685]
[1764984785134,0.66084026,3023.2,3023.1,0.6801]
[1764984785335,0.66084026,3023.2,3023.1,1.1524]
[1764984785754,0.66084026,3023.4,3023.1,1.1524]
[1764984785957,0.66084026,3023.4,3023.3,0.4952]
[1764984786141,0.66084026,3023.4,3023.3,3.80284396]
[1764984786640,0.66084026,3023.4,3023.3,4.27514396]
[1764984787567,0.66084026,3023.6,3023.3,7.58278792]
[1764984787769,0.66084026,3023.6,3023.5,0.4952]
[1764984788972,0.66084026,3023.6,3023.5,3.80262516]
[1764984793655,0.66084026,3023.6,3023.5,4.28462516]
[1764984793858,0.93624026,3023.6,3023.5,3.30742516]
[1764984794060,0.1,3023.4,3023.0,0.525]
[1764984794261,0.4883,3023.1,3023.0,0.001]
[1764984794447,0.5883,3023.1,3023.0,3.30894159]
[1764984795176,0.4883,3023.1,3023.0,0.001]
[1764984795479,0.4883,3023.1,3023.0,3.30897221]
[1764984795770,0.4883,3023.1,3023.0,0.001]
[1764984796173,0.7627,3023.1,3023.0,0.001]
[1764984796481,0.8627,3023.1,3023.0,0.001]
[1764984796686,5.10006678,3023.1,3022.7,0.001]
[1764984796850,0.2875,3022.8,3022.7,0.001]
[1764984797356,0.7749,3022.8,3022.7,0.001]
[1764984797869,4.08309108,3022.8,3022.7,0.001]
[1764984798076,4.80868519,3022.8,3022.7,0.001]
[1764984799677,1.50049411,3022.8,3022.7,0.001]
[1764984799879,0.1027,3022.8,3022.7,0.001]
[1764984800752,0.5901,3022.8,3022.7,0.001]
[1764984801281,0.1027,3022.8,3022.7,0.001]
[1764984801669,0.5267,3022.8,3022.7,0.001]
[1764984801980,0.0027,3022.8,3022.7,0.001]
[1764984802175,1.28484026,3022.9,3022.7,0.4718]
[1764984803285,1.28484026,3022.9,3022.7,0.001]
[1764984803485,0.2613,3022.8,3022.7,0.001]
[1764984803657,0.3613,3022.8,3022.7,0.001]
[1764984805462,0.8464,3022.8,3022.7,0.001]
[1764984805664,1.04952403,3022.8,3022.7,0.001]
[1764984807568,1.57352403,3022.8,3022.7,0.001]
[1764984807954,1.08842403,3022.8,3022.7,0.001]
[1764984810400,1.57352403,3022.8,3022.7,0.001]
[1764984810892,1.57352403,3022.8,3022.7,0.9538]
[1764984810893,0.20312403,3022.8,3022.7,0.9538]
[1764984811089,0.524,3022.8,3022.7,0.4718]
[1764984811574,0.524,3022.8,3022.7,0.001]
[1764984812294,0.66084026,3022.9,3022.7,0.9538]
[1764984812458,0.66084026,3022.9,3022.8,0.4708]
[1764984812654,0.66084026,3022.9,3022.8,0.9528]
[1764984812859,0.66084026,3022.9,3022.8,4.26099108]
[1764984813089,0.66084026,3022.9,3022.8,5.01812086]
[1764984814596,0.002,3023.0,3022.8,5.01812086]
[1764984814771,0.002,3023.0,3022.9,0.9528]
[1764984814972,0.002,3023.0,3022.9,4.26088164]
[1764984815196,0.002,3023.0,3022.9,8.82647575]
[1764984815389,0.002,3023.0,3022.9,10.11575541]
[1764984821307,0.002,3023.0,3022.9,18.32135241]
[1764984821506,0.002,3023.0,3022.9,12.34224141]
[1764984822018,0.002,3023.0,3022.9,12.29224141]
[1764984822524,0.002,3023.0,3022.9,6.22575541]
[1764984823531,0.002,3023.0,3022.9,9.09464941]
[1764984823689,0.002,3023.0,3022.9,9.11237641]
[1764984824698,0.002,3023.0,3022.9,10.30887641]
[1764984825032,0.002,3023.0,3022.9,6.22575541]
[1764984826435,0.002,3023.0,3022.9,8.81633641]
[1764984827326,0.002,3023.0,3022.9,10.06575541]
[1764984827506,0.002,3023.0,3022.9,15.71269341]
[1764984827712,0.002,3023.0,3022.9,15.29543341]
[1764984828136,0.002,3023.0,3022.9,10.06575541]
[1764984828631,0.002,3023.0,3022.9,13.54575541]
[1764984828798,0.002,3023.0,3022.9,10.06575541]
[1764984828999,0.002,3023.0,3022.9,9.58375541]
[1764984830865,0.002,3023.0,3022.9,10.03905541]
[1764984832362,0.002,3023.0,3022.9,9.58375541]
[1764984833559,0.002,3023.0,3022.9,10.03905541]
[1764984833763,0.002,3023.0,3022.9,17.89185541]
[1764984833956,0.002,3023.0,3022.9,13.35555241]
[1764984834890,0.002,3023.4,3022.9,13.35555241]
[1764984834891,0.002,3023.4,3023.3,8.354147]
[1764984835189,0.66084026,3024.4,3023.6,0.405504]
[1764984835387,0.66084026,3024.4,3024.3,3.79765027]
[1764984836184,0.4593,3024.9,3024.3,7.10420054]
[1764984836878,0.66084026,3024.4,3024.3,3.79765027]
[1764984837588,0.66084026,3024.6,3024.3,7.55950054]
[1764984837889,0.66084026,3024.6,3024.3,8.43071903]
[1764984838490,0.66084026,3024.6,3024.3,7.97541903]
[1764984838797,0.66084026,3024.4,3024.3,4.66886876]
[1764984839162,1.00074026,3024.4,3024.3,4.66886876]
[1764984839379,1.00074026,3024.4,3024.3,3.30655027]
[1764984839691,1.45884026,3024.4,3024.2,3.30665961]
[1764984839881,0.4593,3024.3,3024.2,3.30665961]
[1764984840183,0.7992,3024.3,3024.2,3.30665961]
[1764984840587,0.66084026,3024.4,3024.2,4.51139248]
[1764984840793,0.4581,3024.9,3024.3,0.4911]
[1764984840971,0.66084026,3024.5,3024.3,0.4911]
[1764984841495,1.12014026,3025.0,3024.4,0.4911]
[1764984841786,1.12014026,3025.0,3024.5,3.30633162]
[1764984841787,0.66084026,3024.6,3024.5,3.30633162]
[1764984842296,1.00074026,3024.6,3024.5,3.30633162]
[1764984842661,0.66084026,3024.6,3024.5,3.79743162]
[1764984843177,0.1,3024.5,3024.3,3.30648358]
[1764984843493,0.76424026,3024.4,3024.3,3.30648358]
[1764984843895,0.76424026,3024.4,3024.2,3.30665961]
[1764984843896,1.22354026,3024.4,3024.2,3.30665961]
[1764984844101,0.4593,3024.3,3024.2,3.30665961]
[1764984844288,0.7992,3024.3,3024.2,3.30665961]
[1764984845685,0.1,3024.2,3024.1,7.14674692]
[1764984845896,1.22354026,3024.2,3024.1,7.14674692]
[1764984846090,1.22354026,3024.2,3024.1,3.30674692]
[1764984846397,1.22354026,3024.2,3023.6,0.12]
[1764984846398,5.14170076,3024.2,3023.6,0.12]
[1764984846700,1.40714026,3023.7,3023.6,0.12]
[1764984847084,1.75184026,3023.7,3023.6,0.12]
[1764984848091,1.65184026,3023.7,3023.6,0.12]
[1764984848304,1.89310831,3023.7,3023.6,0.12]
[1764984849005,1.65184026,3023.7,3023.6,3.42731578]
[1764984850422,1.65184026,3023.7,3023.6,0.12]
[1764984851814,1.65184026,3023.7,3023.6,3.42731578]
[1764984851987,1.65184026,3023.7,3023.6,0.12]
[1764984852600,1.75184026,3023.7,3023.6,0.12]
[1764984852798,1.99310831,3023.7,3023.6,0.12]
[1764984854501,1.75184026,3023.7,3023.6,0.12]
[1764984859216,0.6463,3023.7,3023.6,0.12]
[1764984859420,0.66084026,3023.9,3023.6,3.92301578]
[1764984859717,0.66084026,3023.7,3023.6,3.92301578]
[1764984860302,0.99004026,3023.7,3023.6,3.42731578]
[1764984869435,0.99204026,3023.7,3023.6,3.42731578]
[1764984870323,0.99204026,3023.7,3023.6,0.12]
[1764984870921,0.002,3023.7,3023.6,4.38981578]
[1764984871233,0.002,3023.7,3023.6,5.75036659]
[1764984877741,0.002,3023.7,3023.6,5.28356659]
[1764984877942,0.002,3023.7,3023.6,3.92301578]
[1764984878645,0.4798,3023.7,3023.6,3.42731578]
[1764984878941,0.002,3023.7,3023.6,3.42731578]
[1764984879142,0.002,3023.7,3023.6,3.89491578]
[1764984880531,0.813,3023.7,3023.6,3.42731578]
[1764984880844,0.4783,3023.7,3023.6,3.42731578]
[1764984882440,0.002,3023.7,3023.6,4.37141578]
[1764984885127,0.002,3023.7,3023.6,3.89491578]
[1764984886155,0.002,3023.7,3023.6,4.71520029]
[1764984886327,0.002,3023.7,3023.6,11.82460156]
[1764984886525,0.002,3023.7,3023.6,15.66460156]
[1764984889571,0.002,3023.7,3023.6,27.08071256]
[1764984889745,0.002,3023.7,3023.6,21.17335356]
[1764984889969,0.002,3023.7,3023.6,19.77045356]
[1764984890145,0.002,3023.7,3023.6,15.68130156]
[1764984890350,0.002,3023.7,3023.6,9.7739944]
[1764984891451,0.002,3023.7,3023.6,10.2969944]
[1764984895321,0.002,3023.7,3023.6,9.8037944]
[1764984895520,0.002,3023.7,3023.6,7.79031578]
[1764984895521,0.8037,3023.7,3023.6,7.79031578]
[1764984896649,0.8037,3023.7,3023.6,3.95031578]
[1764984899152,0.3259,3023.7,3023.6,3.95031578]
[1764984901654,0.002,3023.7,3023.6,4.90531578]
[1764984901861,0.002,3023.7,3023.6,4.41211578]
[1764984902154,0.002,3023.7,3023.6,7.40675568]
[1764984902360,0.002,3023.7,3023.6,7.37368253]
[1764984902547,0.002,3023.7,3023.6,11.21368253]
[1764984903137,0.002,3023.7,3023.6,18.70540353]
[1764984903336,0.002,3023.7,3023.6,16.89504453]
[1764984906328,0.002,3023.7,3023.6,17.30054853]
[1764984906527,0.002,3023.7,3023.6,35.11432753]
[1764984906733,0.002,3023.7,3023.6,32.72407453]
[1764984906932,0.002,3023.7,3023.6,29.36985053]
[1764984907533,0.002,3023.7,3023.6,30.13781853]
[1764984907935,0.002,3023.7,3023.6,29.75481753]
[1764984908863,0.66084026,3024.6,3024.3,5.90655014]
[1764984908864,0.61424026,3024.6,3024.3,5.90655014]
[1764984909161,0.61424026,3024.6,3024.3,6.42955014]
[1764984909530,0.61424026,3024.6,3024.3,6.90485014]
[1764984910462,0.60898026,3024.6,3024.4,3.30644094]
[1764984910663,0.60898026,3024.6,3024.5,0.4773]
[1764984910965,0.60898026,3024.6,3024.4,3.30644094]
[1764984911160,0.002,3024.7,3024.4,6.61288188]
[1764984911360,0.66084026,3024.6,3024.4,6.61288188]
[1764984912337,0.4574,3024.7,3024.5,0.4773]
[1764984912338,0.002,3024.7,3024.5,0.4773]
[1764984913563,0.65466026,3024.8,3024.5,0.4773]
[1764984914072,1.11006026,3024.8,3024.5,0.4773]
[1764984914274,1.00844026,3024.6,3023.6,1.11264286]
[1764984914475,0.1,3024.0,3023.7,3.3072064]
[1764984914683,0.66084026,3024.6,3023.7,6.6144128]
[1764984914684,0.1,3024.3,3023.7,6.6144128]
[1764984914839,0.5554,3024.5,3023.7,6.6144128]
[1764984915177,0.6535,3023.8,3023.7,3.3072064]
[1764984915374,0.991,3023.8,3023.7,3.3072064]
[1764984916444,0.98916,3023.8,3023.7,3.3072064]
[1764984917968,0.98762,3023.8,3023.7,3.3072064]
[1764984921776,0.98962,3023.8,3023.7,3.3072064]
[1764984921943,0.65212,3023.8,3023.7,3.3072064]
[1764984923047,0.98816,3023.8,3023.7,3.3072064]
[1764984927493,0.45536,3023.8,3023.7,3.3072064]
[1764984930794,0.90696,3023.8,3023.6,3.42729883]
[1764984931099,0.66534026,3023.7,3023.6,3.42729883]
[1764984931278,1.12074026,3023.7,3023.6,3.42729883]
[1764984933787,1.12074026,3023.7,3023.6,0.12]
[1764984934094,1.22074026,3023.7,3023.6,0.12]
[1764984937415,5.05094666,3023.7,3023.6,0.12]
[1764984937692,5.88694933,3023.7,3023.6,0.12]
[1764984938690,6.01938803,3023.7,3023.6,0.12]
[1764984939788,6.42489203,3023.7,3023.6,0.12]
[1764984944912,0.4452,3023.3,3022.1,0.13244835]
[1764984945206,19.11154908,3023.7,3022.1,0.13244835]
[1764984945207,0.4596,3023.0,3022.1,0.1951]
[1764984945390,1.0826,3023.0,3022.1,0.1951]
[1764984945590,1.528,3023.0,3022.1,0.1951]
[1764984945783,1.528,3023.0,3022.2,3.30881648]
[1764984946204,1.933504,3023.0,3021.6,0.72559411]
[1764984946404,1.933504,3023.0,3021.6,1.19819411]
[1764984946916,5.96707032,3023.0,3021.8,3.30928501]
[1764984947221,7.71355647,3023.0,3021.8,3.30928501]
[1764984947393,8.70714286,3023.0,3021.8,3.30928501]
[1764984947714,8.70714286,3023.0,3021.8,6.61857086]
[1764984948585,8.70714286,3023.0,3021.9,0.4531]
[1764984949113,8.70714286,3023.0,3022.0,3.30906684]
[1764984952083,8.70714286,3023.0,3022.1,0.1961]
[1764984952786,7.30805247,3023.0,3022.3,0.4531]
[1764984954013,13.62698747,3023.0,3021.7,12.53222174]
[1764984954215,13.62698747,3023.0,3021.7,12.98532174]
[1764984954384,14.08008747,3023.0,3021.8,0.4531]
[1764984955214,14.08008747,3023.0,3021.9,0.4531]
[1764984956393,14.08008747,3023.0,3022.1,0.6492]
[1764984956588,7.64365647,3023.0,3022.2,0.4531]
[1764984956797,8.16665647,3023.0,3022.2,0.4531]
[1764984956989,7.31005247,3023.0,3022.4,0.4531]
[1764984957313,7.31005247,3023.0,3022.5,0.001]
[1764984960486,7.71555647,3023.0,3022.5,0.001]
[1764984961108,6.78705247,3023.0,3022.5,0.001]
[1764984961307,7.31005247,3023.0,3022.5,0.001]
[1764984962685,6.78705247,3023.0,3022.5,0.001]
[1764984962891,7.31005247,3023.0,3022.5,0.001]
[1764984966686,6.86465247,3023.0,3022.5,0.4541]
[1764984967407,7.31015247,3023.0,3022.5,0.4541]
[1764984969009,6.78715247,3023.0,3022.5,0.4541]
[1764984969328,7.31015247,3023.0,3022.5,0.4541]
[1764984969622,7.31015247,3023.0,3022.5,0.001]
[1764984971596,7.71565647,3023.0,3022.5,0.001]
[1764984974431,7.71565647,3023.0,3022.5,0.4558]
[1764984974624,6.86465247,3023.0,3022.5,0.001]
[1764984974808,6.86465247,3023.0,3022.9,0.4819]
[1764984975394,6.86465247,3023.0,3022.9,0.001]
[1764984975598,6.40505247,3023.0,3022.9,0.4819]
[1764984979296,4.79640658,3023.0,3022.9,0.9367]
[1764984979500,5.31940658,3023.0,3022.9,0.9367]
[1764984980323,5.31940658,3023.0,3022.9,0.4819]
[1764984981407,6.22430658,3023.0,3022.9,0.001]
[1764984983031,5.76570658,3023.0,3022.9,0.001]
[1764984983332,5.31940658,3023.0,3022.9,0.9367]
[1764984983535,5.31940658,3023.0,3022.9,0.4819]
[1764984984528,5.31940658,3023.0,3022.9,0.001]
[1764984984705,5.76570658,3023.0,3022.9,0.001]
[1764984986033,5.31940658,3023.0,3022.9,0.9367]
[1764984986234,0.66284026,3023.0,3022.9,0.9367]
[1764984990745,0.76284026,3023.0,3022.9,0.9367]
[1764984990953,0.76284026,3023.0,3022.9,0.4819]
[1764984991234,1.20914026,3023.0,3022.9,0.001]
[1764984991426,4.51711247,3023.0,3022.9,0.001]
[1764984991829,6.79864896,3023.0,3022.9,0.001]
[1764984994806,0.66284026,3023.0,3022.9,0.9367]
[1764984998146,0.1,3021.7,3021.2,0.1963]
[1764984998344,0.6329,3022.9,3021.2,0.6511]
[1764984998345,0.1,3021.5,3021.2,0.6511]
[1764984998560,0.1,3021.5,3021.4,0.4809]
[1764985000359,0.1,3021.1,3020.7,9.41259289]
[1764985000561,0.523,3021.4,3020.9,5.913431]
[1764985000750,0.1,3021.3,3020.9,5.913431]
[1764985000953,0.66084026,3021.2,3021.0,0.4799]
[1764985001466,0.66084026,3021.2,3021.1,0.6606]
[1764985001837,0.66084026,3021.2,3021.1,1.1405]
[1764985002238,0.66084026,3021.2,3021.1,0.471]
[1764985003461,0.66084026,3021.2,3021.1,0.9509]
[1764985003748,0.76084026,3021.2,3021.1,0.471]
[1764985004681,1.19694026,3021.2,3020.7,3.49915309]
[1764985004834,0.76084026,3020.8,3020.7,0.1887]
[1764985005036,0.76084026,3020.8,3020.7,3.97909094]
[1764985005236,0.76084026,3020.8,3020.7,4.45009094]
[1764985005436,0.76084026,3020.8,3020.7,1.1396]
[1764985005851,0.76084026,3020.8,3020.7,0.471]
[1764985006574,0.76084026,3020.8,3020.7,0.9509]
[1764985007076,0.76084026,3020.8,3020.7,4.26139094]
[1764985007464,0.76084026,3020.8,3020.7,0.9509]
[1764985008635,0.76084026,3020.8,3020.7,4.26139094]
[1764985010656,0.1,3020.7,3020.6,0.001]
[1764985010860,0.1,3021.3,3020.7,7.54968188]
[1764985011048,0.1744,3021.9,3020.7,7.54968188]
[1764985011049,0.1,3021.4,3021.2,0.4633]
[1764985011245,0.1,3021.4,3021.2,1.052]
[1764985011471,0.1,3021.4,3021.3,0.4633]
[1764985011676,0.1,3021.4,3021.3,0.9287]
[1764985013650,0.76084026,3021.4,3021.3,0.9287]
[1764985014650,0.1,3021.1,3020.6,0.001]
[1764985014846,0.66084026,3020.7,3020.6,0.001]
[1764985015040,0.66084026,3020.7,3020.6,0.4664]
[1764985015255,0.66084026,3020.7,3020.6,0.4643]
[1764985015460,0.66084026,3020.7,3020.6,0.9297]
[1764985016047,0.66084026,3020.9,3020.6,1.68481141]
[1764985016253,0.66084026,3020.7,3020.6,0.75611141]
[1764985016764,0.66084026,3020.7,3020.6,4.99541195]
[1764985018574,0.66084026,3020.7,3020.6,4.24030054]
[1764985020377,0.76084026,3020.7,3020.6,0.4643]
[1764985020580,1.20314026,3020.7,3020.6,0.001]
[1764985021372,1.56024026,3020.7,3020.6,0.001]
[1764985021761,0.76084026,3020.7,3020.6,0.4643]
[1764985022170,1.20224026,3020.7,3020.6,0.001]
[1764985022569,0.76084026,3020.7,3020.6,0.9297]
[1764985022774,0.66084026,3020.7,3020.6,4.24030054]
[1764985023355,0.66084026,3020.7,3020.6,4.99540811]
[1764985037792,0.66084026,3020.9,3020.6,8.30600865]
[1764985037987,0.66084026,3020.9,3020.8,0.4963]